Cogmind - Beta 17 @@@ ROGUE MODE // 2026.07.23 @ 17:57:26 Player: rz Result: Destroyed by H-88 Terminator with KE Penetrator Performance ------------- Evolutions (9) 4500 Regions Visited (21) 4200 Robots Destroyed (205) 1025 Value Destroyed (9426) 9426 Prototype IDs (32) 640 Alien Tech Used (0) 0 Bonus (3488) 3488 TOTAL SCORE: 23279 Bonus ------- High Alert Combat Kills 483 Follower Combat Kills 167 Entered DSFs 500 Aligned with FarCom 300 Acquired ECA 300 Met Warlord at Base 500 MAIN.C Attacked Warlord 500 Warlord Defense Kills 1336 Friendly Fire -598 Cogmind --------- Core Integrity 0/1600 Matter 265/300 Energy 58/100 System Corruption 14% Temperature Cool (12) Movement Flying (26) Location -1/Access Parts ------- > --- POWER (2) -------- (None) > --- PROPULSION (2) --- Cooled Impulse Thruster Cooled Impulse Thruster > --- UTILITY (11) ----- Graphene Brace > --- WEAPON (10) ------ (None) > --- INVENTORY (5) ---- Centrium Wheel Centrium Wheel Heavy Armor Plating Minigun Peak State ------------ > --- POWER ------------ Light Antimatter Reactor Light Quantum Reactor > --- PROPULSION ------- Heavy Siege Treads > --- UTILITY ---------- Advanced Cooling System Advanced Cooling System Huge Storage Unit Advanced Target Analyzer Core Analyzer Advanced Recoil Stabilizer Advanced Weapon Cycler Improved Cloaking Device Hardened Medium Armor Plating Improved Focal Shield Long-range Tractor Beam > --- WEAPON ----------- Vortex Shotgun Vortex Shotgun Heavy Machine Gun Heavy Machine Gun KE Penetrator KE Penetrator Improved KE Penetrator Improved KE Penetrator Railgun Helical Railgun > --- INVENTORY -------- Light Quantum Reactor Centrium Wheel Centrium Wheel High-capacity Matter Pod Improved Weapon Cycler Heavy Armor Plating Advanced Thermal Shield Dynamic Insulation System Minigun Heavy Machine Gun Heavy Machine Gun Heavy Machine Gun Heavy Machine Gun KE Penetrator Railgun [Rating: 168] Favorites ----------- Power Improved Deuterium Engine Engine Improved Deuterium Engine Power Core Light Nuclear Core Reactor Light Antimatter Reactor Propulsion Armored Treads Treads Armored Treads Wheel Armored Huge Wheel Flight Unit Cooled Impulse Thruster Utility Advanced Recoil Stabilizer Device Advanced Recoil Stabilizer Storage Huge Storage Unit Processor Core Analyzer Protection Reactive Plating Weapon Minigun Energy Gun Vortex Shotgun Ballistic Gun Minigun Launcher Vortex Catalyst Activator Impact Weapon Makeshift Hammer Build | -11 -10 -10 -9 -9 -9 -8 -8 -8 -8 -8 -6 -6 -5 -4 -4 -4 -4 -3 -3 -2 -1 ------- Run | Yrd Mat Min Mat Min Exi Min Mat Sto Rec Scr Fac DSF Fac Fac Upp Upp War Pro Res Res Acc Slots Evolved 18 | . . . 2 . . . 2 . . . 4 . 2 2 . . . . 2 2 2 Power 1 | . . . . . . . . . . . . . . . . . . . 1 . . Propulsion . | . . . . . . . . . . . . . . . . . . . . . . Utility 9 | . . . . . . . 1 . . . 1 . 1 1 . . . . 1 2 2 Weapon 8 | . . . 2 . . . 1 . . . 3 . 1 1 . . . . . . . Parts Attached 96 | 6 1 . 7 3 2 . 2 12 . . 4 4 7 3 . 1 3 5 8 13 15 Power 10 | 1 . . 1 1 1 . . 1 . . . 1 . . . . 1 . 1 1 1 Engine 4 | 1 . . 1 1 . . . . . . . 1 . . . . . . . . . Core 2 | . . . . . 1 . . 1 . . . . . . . . . . . . . Reactor 4 | . . . . . . . . . . . . . . . . . 1 . 1 1 1 Propulsion 12 | 2 . . . 1 . . . 5 . . . . 1 . . . . . . . 3 Treads 6 | 2 . . . . . . . 3 . . . . . . . . . . . . 1 Leg . | . . . . . . . . . . . . . . . . . . . . . . Wheel 4 | . . . . 1 . . . 2 . . . . 1 . . . . . . . . Hover . | . . . . . . . . . . . . . . . . . . . . . . Flight 2 | . . . . . . . . . . . . . . . . . . . . . 2 Utility 34 | 1 1 . 2 . 1 . 1 2 . . 1 3 4 2 . 1 1 . 4 7 3 Device 20 | . . . . . . . . 2 . . . 2 3 . . 1 1 . 4 4 3 Storage 4 | 1 . . . . 1 . . . . . . . 1 1 . . . . . . . Processor 4 | . . . . . . . 1 . . . . . . 1 . . . . . 2 . Hackware . | . . . . . . . . . . . . . . . . . . . . . . Protection 6 | . 1 . 2 . . . . . . . 1 1 . . . . . . . 1 . Artifact . | . . . . . . . . . . . . . . . . . . . . . . Weapon 40 | 2 . . 4 1 . . 1 4 . . 3 . 2 1 . . 1 5 3 5 8 Energy Gun 4 | . . . 1 . . . . . . . . . . . . . . . 2 . 1 Energy Cannon . | . . . . . . . . . . . . . . . . . . . . . . Ballistic Gun 34 | 2 . . 3 1 . . 1 4 . . 3 . 2 1 . . 1 5 . 5 6 Ballistic Cannon . | . . . . . . . . . . . . . . . . . . . . . . Launcher 1 | . . . . . . . . . . . . . . . . . . . . . 1 Special Weapon . | . . . . . . . . . . . . . . . . . . . . . . Impact Weapon 1 | . . . . . . . . . . . . . . . . . . . 1 . . Slashing Weapon . | . . . . . . . . . . . . . . . . . . . . . . Piercing Weapon . | . . . . . . . . . . . . . . . . . . . . . . Special Melee Weapon . | . . . . . . . . . . . . . . . . . . . . . . Unidentified Prototypes 9 | . . . . . . . . 2 . . . . 1 . . . 1 . 2 1 2 Parts Lost 38 | . . . 4 1 . . . 2 . . . . . . . . 1 5 3 1 21 Power 3 | . . . 1 . . . . 1 . . . . . . . . . . . . 1 Propulsion 2 | . . . 1 . . . . 1 . . . . . . . . . . . . . Utility 11 | . . . 1 . . . . . . . . . . . . . . . 1 1 8 Weapon 22 | . . . 1 1 . . . . . . . . . . . . 1 5 2 . 12 Highest Loss Streak 17 | . . . 4 1 . . . 1 . . . . . . . . 1 2 2 1 17 To Critical Strikes 4 | . . . . . . . . . . . . . . . . . . 1 . . 3 Average Backups 14 | . 1 5 6 7 8 8 6 9 10 10 6 9 10 15 17 19 21 22 22 22 17 Power . | . 1 2 2 1 . . . . . . . . . . . . . . . . . Propulsion 2 | . . . . . . . . 2 2 2 2 2 4 3 4 4 4 4 3 2 2 Utility 7 | . . 3 3 2 2 3 2 3 4 4 3 4 4 9 11 11 12 12 13 12 5 Weapon 4 | . . . . 4 5 5 4 3 4 4 1 1 1 2 2 3 5 5 4 8 8 Tool/Special . | . . . . . . . . . . . . . . . . . . . . . . Unused Backups 27 | . . . . 2 . . . 8 . . . 2 1 . . . . . 1 10 3 Power 1 | . . . . 1 . . . . . . . . . . . . . . . . . Propulsion 8 | . . . . . . . . 2 . . . . 1 . . . . . 1 2 2 Utility 12 | . . . . 1 . . . 2 . . . 2 . . . . . . . 6 1 Weapon 6 | . . . . . . . . 4 . . . . . . . . . . . 2 . Tool/Special . | . . . . . . . . . . . . . . . . . . . . . . Average Slot Usage (%) 95 | . 90 100 83 91 100 100 96 99 100 100 98 99 95 93 94 94 94 93 91 92 89 Engine 3 | . 14 14 11 11 4 . . . . . . 5 5 5 5 5 4 . . . . Core 2 | . . . . . 6 11 9 8 9 9 6 . . . . . . . . . . Reactor 1 | . . . . . . . . . . . . . . . . . . 5 5 7 7 Treads 7 | . 28 28 14 11 11 11 9 14 18 18 13 13 3 . . . . . . . . Wheel 3 | . . . . 3 11 11 9 3 . . . . 3 5 5 5 5 5 4 4 3 Device 14 | . . . . . . . . 8 9 9 6 11 20 21 21 21 21 21 22 21 25 Storage 6 | . 14 14 11 11 11 11 9 9 9 9 6 6 5 5 5 5 5 5 4 4 3 Processor 2 | . . . . . . . 6 . . . . . . 4 5 5 5 5 4 7 7 Protection 5 | . 5 14 11 11 11 11 9 9 9 9 12 7 1 . . . . . . 2 4 Ballistic Gun 45 | . 28 28 33 44 44 44 45 45 45 45 52 53 52 52 52 52 52 51 43 39 32 Peak Build Rating 168 | 6 7 8 15 18 20 20 29 38 38 38 48 53 73 87 87 90 106 113 130 151 168 Average Rating 71 | 4 6 7 10 15 19 20 27 32 38 38 47 52 67 85 87 88 92 109 122 140 149 On Entrance 52 | . 6 7 8 15 18 20 20 29 38 38 38 48 53 73 87 87 90 106 113 124 144 Avg Prop Armor Cover (%) 5 | . . . . 3 6 7 6 5 . . . . . . . . . . . . . Naked Turns 25 | . . . . . . . . . . . . . . . . . . . . . 25 Heaviest Build 194 | 14 17 17 29 29 35 35 38 41 41 41 59 65 68 134 134 134 147 153 173 181 194 Greatest Support 70 | 40 40 40 40 20 20 10 10 40 40 40 40 40 40 28 28 28 28 28 28 28 70 Greatest Overweight (x) 6 | . . . 1 2 3 3 3 4 1 1 1 1 2 4 4 4 5 5 6 6 6 Average Overweight (x) 2 | . . . . 1 2 3 3 1 1 1 1 1 1 3 4 4 4 5 5 5 4 Largest Inventory Capacity 25 | 8 8 8 8 8 10 10 10 10 10 10 10 10 15 25 25 25 25 25 25 25 25 Average Capacity 16 | 7 8 8 8 8 8 10 10 10 10 10 10 10 11 22 25 25 25 25 25 25 23 Most Carried 25 | 1 5 7 8 8 8 8 7 10 10 10 9 10 13 17 18 20 25 25 25 25 24 Average Carried 14 | . 1 5 6 7 7 8 6 9 10 10 6 9 10 15 17 19 22 23 23 24 19 Final Capacity 25 | 8 8 8 8 8 10 10 10 10 10 10 10 10 15 25 25 25 25 25 25 25 5 Final Carried 25 | 1 5 7 7 8 8 8 7 10 10 10 6 10 13 17 18 20 25 22 23 25 5 Class Distribution -------------------- 57% | Scavenger-Executioner 21% | Tank 13% | Skirmisher 4% | Mutant 3% | Scavenger-Skirmisher Dominant Class ---------------- Mutant | -10/Materials Mutant | -10/Mines Tank | -9/Materials Tank | -9/Mines Tank | -9/Exiles Skirmisher | -8/Mines Skirmisher | -8/Materials Skirmisher | -8/Storage Skirmisher | -8/Recycling Tank | -8/Scraptown Scavenger-Executioner | -6/Factory Scavenger-Executioner | -6/DSF Scavenger-Executioner | -5/Factory Scavenger-Executioner | -4/Factory Scavenger-Executioner | -4/Upper Caves Scavenger-Executioner | -4/Upper Caves Scavenger-Executioner | -4/Warlord Scavenger-Executioner | -3/Proximity Caves Scavenger-Executioner | -3/Research Scavenger-Executioner | -2/Research Scavenger-Executioner | -1/Access Resources | -11 -10 -10 -9 -9 -9 -8 -8 -8 -8 -8 -6 -6 -5 -4 -4 -4 -4 -3 -3 -2 -1 ----------- Run | Yrd Mat Min Mat Min Exi Min Mat Sto Rec Scr Fac DSF Fac Fac Upp Upp War Pro Res Res Acc Matter Collected 8647 | 119 236 89 63 421 . 63 . 1287 20 . . 972 111 276 202 429 535 520 345 1101 1858 Remotely 2040 | . . . . . . . . . . . . . . . . . 250 . . 490 1300 Salvage Created 9776 | . 280 150 179 516 . . . 1697 55 . . 922 140 221 150 321 731 523 593 1011 2287 Parts 552 | . 19 11 13 43 . . . 89 4 . . 49 8 15 5 14 33 32 44 55 118 Haulers Intercepted 2 | . . . . . . . . . . . . . . . . . . . . . 2 Recyclers Shooed 1 | . . . . 1 . . . . . . . . . . . . . . . . . Parts Field Recycled . | . . . . . . . . . . . . . . . . . . . . . . Retrieved Matter . | . . . . . . . . . . . . . . . . . . . . . . Parts Self-Destructed 50 | . . . . . . . . . . . . . . . 5 12 . 33 . . . Prevented . | . . . . . . . . . . . . . . . . . . . . . . Parts Restored . | . . . . . . . . . . . . . . . . . . . . . . Kills | -11 -10 -10 -9 -9 -9 -8 -8 -8 -8 -8 -6 -6 -5 -4 -4 -4 -4 -3 -3 -2 -1 ------- Run | Yrd Mat Min Mat Min Exi Min Mat Sto Rec Scr Fac DSF Fac Fac Upp Upp War Pro Res Res Acc Combat Hostiles Destroyed 164 | . 7 5 5 15 . . . 27 1 . . 13 2 3 2 7 10 11 9 17 30 Guns 162 | . 7 5 5 15 . . . 27 1 . . 13 2 3 2 7 10 11 9 17 28 AOE 2 | . . . . . . . . . . . . . . . . . . . . . 2 Classes Destroyed 19 | . 3 . . 3 . . . 5 . . . 3 . 1 . 1 1 . . 1 1 Worker 18 | . . . . 1 . . . 1 . . . . . 1 . . . . 1 . 14 Builder 8 | . . . . 1 . . . 1 . . . . 1 . . . . . . . 5 Tunneler 1 | . . . . 1 . . . . . . . . . . . . . . . . . Hauler 2 | . . . . . . . . . . . . . . . . . . . . . 2 Recycler 5 | . 1 . . 2 . . . 2 . . . . . . . . . . . . . Operator 1 | . . . . . . . . 1 . . . . . . . . . . . . . Watcher 3 | . . . . . . . . . . . . . . 1 . . . . . . 2 Swarmer 40 | . 3 3 . 11 . . . . . . . . . . . 5 2 7 . 9 . Grunt 50 | . 4 2 5 4 . . . 12 . . . 10 . . . . 5 . . . 8 Brawler 2 | . . . . . . . . 2 . . . . . . . . . . . . . Duelist 1 | . . . . . . . . 1 . . . . . . . . . . . . . Sentry 17 | . . . . . . . . 11 1 . . . . . 1 1 . . . 3 . Specialist 3 | . . . . . . . . . . . . 1 . . . . 2 . . . . Hunter 12 | . . . . . . . . 1 . . . . . . . . . 2 . 2 7 Programmer 32 | . . . . . . . . . . . . 1 2 3 1 . . 2 9 . 14 Heavy 1 | . . . . . . . . . . . . 1 . . . . . . . . . Behemoth 2 | . . . . . . . . . . . . . . . . 1 . . . . 1 Striker 3 | . . . . . . . . . . . . . . . . . . . . 3 . Executioner 1 | . . . . . . . . . . . . . . . . . 1 . . . . Wasp 2 | . . . . . . . . . . . . . . . . . . . . 2 . Thug 1 | . . . . . . . . . . . . . . . . . 1 . . . . Best Kill Streak 14 | . 5 3 3 5 . . . 6 1 . . 4 2 2 1 5 10 4 3 6 14 Combat Bots Only 10 | . 5 3 3 4 . . . 4 1 . . 4 2 2 1 5 10 4 3 6 9 Max Kills in Single Turn 7 | . 1 2 1 2 . . . 2 1 . . 2 1 2 1 2 2 3 3 3 7 Gunslinging 2 | . . 1 . . . . . . . . . 1 . . . 1 1 1 2 2 1 Exploded 1 | . . . . . . . . . . . . . . . . . . . . . 1 Melee . | . . . . . . . . . . . . . . . . . . . . . . Uniques/NPCs Destroyed . | . . . . . . . . . . . . . . . . . . . . . . Combat | -11 -10 -10 -9 -9 -9 -8 -8 -8 -8 -8 -6 -6 -5 -4 -4 -4 -4 -3 -3 -2 -1 -------- Run | Yrd Mat Min Mat Min Exi Min Mat Sto Rec Scr Fac DSF Fac Fac Upp Upp War Pro Res Res Acc Hostile Shots Fired 788 | . 48 14 41 34 . . . 38 . . . 31 8 4 17 18 78 41 19 18 379 Missed 268 | . 15 8 11 8 . . . 10 . . . 13 5 . 9 4 36 13 7 3 126 Hits 520 | . 33 6 30 26 . . . 28 . . . 18 3 4 8 14 42 28 12 15 253 Melee 1 | . . . . . . . . 1 . . . . . . . . . . . . . Projectile 519 | . 33 6 30 26 . . . 27 . . . 18 3 4 8 14 42 28 12 15 253 Critical Strikes 21 | . . . . . . . . . . . . 2 1 . . . 1 2 1 . 14 Actively Blocked 3 | . . . . . . . . . . . . . . . . . . . . . 3 Part Disruptions 3 | . . . . . . . . . . . . . . . . . . . 2 . 1 Actively Blocked 1 | . . . . . . . . . . . . . . . . . . . 1 . . Damage Taken 9127 | . 352 80 337 193 . . . 399 . . . 441 65 76 122 265 575 446 298 521 4957 Core 1932 | . 31 28 66 8 . . . 23 . . . . . . 22 46 6 39 . 52 1611 Absorbed by Shields . | . . . . . . . . . . . . . . . . . . . . . . Reduced by Siege Mode 109 | . . . . . . . . . . . . . . . . . . . . . 109 Ignored by Resistances 913 | . . . . 40 . . . 23 . . . 46 . . . 43 57 130 . . 574 Regen/Repaired (Parts) 360 | . . . . . . . . . . . . . . . . . 276 . . 84 . Core Remaining (%) 93 | 100 . 76 . . . 81 . . . 95 . 100 100 . . . . 90 100 96 . Volleys Fired 305 | . 20 9 16 29 . . . 69 1 . . 22 16 4 4 9 10 13 12 20 51 Largest 10 | . 2 2 4 4 . . . 5 5 . . 8 9 10 10 10 10 10 10 10 10 Hottest 385 | . 40 40 90 95 . . . 125 125 . . 201 229 270 270 270 275 305 355 360 385 Shots Fired 1810 | . 40 18 48 115 . . . 285 5 . . 176 44 40 41 87 99 116 88 194 414 Gun 1805 | . 40 18 48 115 . . . 285 5 . . 176 44 40 41 87 99 116 88 194 409 Cannon . | . . . . . . . . . . . . . . . . . . . . . . Launcher 5 | . . . . . . . . . . . . . . . . . . . . . 5 Special . | . . . . . . . . . . . . . . . . . . . . . . Kinetic 1726 | . 40 18 42 115 . . . 285 5 . . 176 44 40 41 87 99 116 83 182 353 Thermal 6 | . . . 6 . . . . . . . . . . . . . . . . . . Explosive . | . . . . . . . . . . . . . . . . . . . . . . Electromagnetic 17 | . . . . . . . . . . . . . . . . . . . 5 12 . Entropic 61 | . . . . . . . . . . . . . . . . . . . . . 61 Robot Hit Streak 18 | . 8 14 14 6 . . . 15 6 . . 16 6 12 8 15 16 8 18 17 12 Robot Miss Streak 10 | . 1 1 3 3 . . . 3 . . . 9 2 4 2 2 8 4 3 7 10 Penetration Max 1 | . . . . . . . . . . . . 1 . . . . 1 1 1 1 1 Secondary Targets 47 | . 2 1 1 1 . . . 3 . . . 2 . . . 2 8 3 4 7 13 Max Gunslinging Chain 2 | . 1 1 1 1 . . . 1 . . . 1 . . . 1 2 1 2 2 2 Shots Hit Robots 999 | . 27 16 34 58 . . . 145 5 . . 95 23 18 31 51 57 59 52 112 216 Core Hits 455 | . 13 8 11 28 . . . 59 1 . . 44 7 10 6 18 36 27 21 50 116 Critical Kills 18 | . . . . . . . . 1 . . . 1 . . . . 2 2 . 8 4 Critical Parts Destroyed 35 | . . . . 1 . . . 1 . . . 1 1 . . 3 1 1 1 5 20 Critical Strikes 60 | . . . . 1 . . . 2 . . . 2 1 . . 3 3 3 1 18 26 Destroy 53 | . . . . 1 . . . 2 . . . 2 1 . . 3 3 3 1 18 19 Detonate 7 | . . . . . . . . . . . . . . . . . . . . . 7 Melee Attacks 4 | . . . . . . . . . . . . . . . . . . . 4 . . Impact 4 | . . . . . . . . . . . . . . . . . . . 4 . . Slashing . | . . . . . . . . . . . . . . . . . . . . . . Piercing . | . . . . . . . . . . . . . . . . . . . . . . Sneak Attacks . | . . . . . . . . . . . . . . . . . . . . . . Combat Hostiles . | . . . . . . . . . . . . . . . . . . . . . . Follow-up Attacks . | . . . . . . . . . . . . . . . . . . . . . . Damage Inflicted 24778 | . 351 203 378 900 . . . 2636 92 . . 1705 496 386 498 918 1223 1252 1419 2857 9464 Guns 22015 | . 351 203 378 900 . . . 2636 92 . . 1705 496 386 498 918 1223 1252 1419 2857 6701 Cannons . | . . . . . . . . . . . . . . . . . . . . . . Explosions 2763 | . . . . . . . . . . . . . . . . . . . . . 2763 Melee . | . . . . . . . . . . . . . . . . . . . . . . Ramming . | . . . . . . . . . . . . . . . . . . . . . . Kinetic 19632 | . 351 203 314 900 . . . 2636 92 . . 1705 496 386 498 918 1223 1252 1402 2728 4528 Thermal 1362 | . . . 64 . . . . . . . . . . . . . . . . . 1298 Explosive . | . . . . . . . . . . . . . . . . . . . . . . Electromagnetic 146 | . . . . . . . . . . . . . . . . . . . 17 129 . Impact . | . . . . . . . . . . . . . . . . . . . . . . Slashing . | . . . . . . . . . . . . . . . . . . . . . . Piercing . | . . . . . . . . . . . . . . . . . . . . . . Entropic 3638 | . . . . . . . . . . . . . . . . . . . . . 3638 Highest Corruption 14 | . . . . . . . . . . . . . 1 1 3 3 3 . 4 . 14 Average Corruption 2 | . . . . . . . . . . . . . 1 1 1 3 3 . 2 . 5 Corruption Purged 4 | . . . . . . . . . . . . . . . . . . . 4 . . Corruption Blocked . | . . . . . . . . . . . . . . . . . . . . . . Effects 41 | . . . . . . . . . . . . . 2 3 3 11 1 . 2 . 19 Message Errors 9 | . . . . . . . . . . . . . . . . 3 1 . 1 . 4 Matter Fused 11 | . . . . . . . . . . . . . 1 1 . 1 . . 1 . 7 Heat Flow Errors 4 | . . . . . . . . . . . . . . . . 1 . . . . 3 Energy Discharges 5 | . . . . . . . . . . . . . . 1 1 3 . . . . . Data Loss (minor) 7 | . . . . . . . . . . . . . . 1 1 2 . . . . 3 Data Loss (major) 1 | . . . . . . . . . . . . . 1 . . . . . . . . Misfires 1 | . . . . . . . . . . . . . . . 1 . . . . . . Misdirections 1 | . . . . . . . . . . . . . . . . . . . . . 1 Weapon Failures 2 | . . . . . . . . . . . . . . . . 1 . . . . 1 Overload Shots . | . . . . . . . . . . . . . . . . . . . . . . Overflow Damage 291 | . . . . . . . . . . . . . . . . . . . . . 291 Projectiles . | . . . . . . . . . . . . . . . . . . . . . . Explosions 291 | . . . . . . . . . . . . . . . . . . . . . 291 Melee . | . . . . . . . . . . . . . . . . . . . . . . Knockbacks . | . . . . . . . . . . . . . . . . . . . . . . Impact . | . . . . . . . . . . . . . . . . . . . . . . Kinetic . | . . . . . . . . . . . . . . . . . . . . . . Secondary . | . . . . . . . . . . . . . . . . . . . . . . Self-Inflicted Damage 51 | . . . . . . . . . . . . . . . . . . . . . 51 Shots 1 | . . . . . . . . . . . . . . . . . . . . . 1 Rammed . | . . . . . . . . . . . . . . . . . . . . . . Targets Rammed . | . . . . . . . . . . . . . . . . . . . . . . Kicked . | . . . . . . . . . . . . . . . . . . . . . . Crushed . | . . . . . . . . . . . . . . . . . . . . . . Highest Temperature 497 | . 23 7 150 252 . . . 154 48 . . 186 387 288 306 387 497 382 376 384 451 Average Temperature 108 | . 9 3 47 89 . . . 52 27 . . 70 202 117 131 155 210 175 154 140 159 Received Heat Transfer 978 | . 138 42 180 45 . . . 153 . . . 90 . . . 36 132 . 9 27 126 Effects 16 | . . . . 2 . . . . . . . . . . . 4 3 4 1 . 2 Shutdowns 5 | . . . . . . . . . . . . . . . . 1 1 1 . . 2 Energy Bleed 1 | . . . . . . . . . . . . . . . . . . . 1 . . Interference 9 | . . . . 2 . . . . . . . . . . . 3 2 2 . . . Damage (minor) 1 | . . . . . . . . . . . . . . . . . . 1 . . . Siege Activations 1 | . . . . . . . . . . . . . . . . . . . . . 1 Total Turns 18 | . . . . . . . . . . . . . . . . . . . . . 18 Longest Duration 18 | . . . . . . . . . . . . . . . . . . . . . 18 Martial Activations . | . . . . . . . . . . . . . . . . . . . . . . Shielding Activations . | . . . . . . . . . . . . . . . . . . . . . . Robots Disrupted . | . . . . . . . . . . . . . . . . . . . . . . Combat Hostiles . | . . . . . . . . . . . . . . . . . . . . . . Robots Corrupted . | . . . . . . . . . . . . . . . . . . . . . . Combat Hostiles . | . . . . . . . . . . . . . . . . . . . . . . Parts Fried . | . . . . . . . . . . . . . . . . . . . . . . Impact Corruptions . | . . . . . . . . . . . . . . . . . . . . . . Robots Melted . | . . . . . . . . . . . . . . . . . . . . . . Combat Hostiles . | . . . . . . . . . . . . . . . . . . . . . . Parts Melted 2 | . . . . . . . . 1 . . . . . . . . . . . . 1 Heat Transferred 950 | . . . 150 . . . . . . . . . . . . . . . . . 800 Parts Sabotaged . | . . . . . . . . . . . . . . . . . . . . . . Parts Stolen . | . . . . . . . . . . . . . . . . . . . . . . Parts Stripped . | . . . . . . . . . . . . . . . . . . . . . . Power Chain Reactions . | . . . . . . . . . . . . . . . . . . . . . . Alert | -11 -10 -10 -9 -9 -9 -8 -8 -8 -8 -8 -6 -6 -5 -4 -4 -4 -4 -3 -3 -2 -1 ------- Run | Yrd Mat Min Mat Min Exi Min Mat Sto Rec Scr Fac DSF Fac Fac Upp Upp War Pro Res Res Acc Maximum Alert Level 3 | . . . . . . . . 2 1 . . 1 . . . . . . . . 3 Low Security (%) 82 | 100 100 100 100 100 . 100 100 36 96 . 100 71 100 100 . . . . 100 100 37 Level 1 9 | . . . . . . . . 41 3 . . 28 . . . . . . . . 13 Level 2 7 | . . . . . . . . 21 . . . . . . . . . . . . 48 Level 3 . | . . . . . . . . . . . . . . . . . . . . . 1 Level 4 . | . . . . . . . . . . . . . . . . . . . . . . Level 5 . | . . . . . . . . . . . . . . . . . . . . . . High Security . | . . . . . . . . . . . . . . . . . . . . . . Max Security . | . . . . . . . . . . . . . . . . . . . . . . Sterilizations 1 | . . . . . . . . . . . . 1 . . . . . . . . . Peak Influence 712 | . 125 90 65 120 . . 7 549 207 . . 323 169 54 . . . . 88 157 712 Initial 207 | . . 40 19 21 . . . . 207 . . 3 169 . . . . . 47 25 84 Average 101 | . 84 28 28 47 . . . 233 79 . . 126 35 5 . . . . 29 61 310 Influence Increases 5040 | . 175 120 135 443 . . 7 1067 25 . 5 320 81 98 50 160 200 260 350 446 1098 Destroy 0b10 Robot/C 3380 | . 140 100 100 320 . . . 620 20 . . 260 40 60 40 140 200 220 180 340 600 Destroy 0b10 Robot/NC 195 | . 5 . . 25 . . . 25 . . . 5 5 10 . . . . 5 . 115 Destroy Leader 720 | . 30 20 20 50 . . . 180 . . . 40 10 22 10 20 . 40 40 80 158 Allied During Kill 37 | . . . . 3 . . . 34 . . . . . . . . . . . . . Successful Hack 128 | . . . . . . . 7 5 5 . 5 . 20 . . . . . 81 5 . Disable Machine 165 | . . . . 45 . . . 90 . . . . . . . . . . 30 . . Destroy Structure 265 | . . . . . . . . 8 . . . . 6 6 . . . . 14 21 210 Partial Spotted 15 | . . . . . . . . . . . . . . . . . . . . . 15 Lose Combat Pursuer 135 | . . . 15 . . . . 105 . . . 15 . . . . . . . . . Influence Decreases 4426 | . 70 175 130 449 49 . 7 536 556 . . 2 404 98 48 158 32 362 374 350 626 Entered New Map 939 | . . 65 31 34 49 . . . 324 . . 2 154 . . 2 4 172 23 21 58 Time Decay 3057 | . 70 110 79 385 . . 7 466 232 . . . 250 98 48 156 18 140 321 319 358 Lost Part 350 | . . . 20 10 . . . 10 . . . . . . . . 10 50 30 10 210 Lost Ally 60 | . . . . 20 . . . 40 . . . . . . . . . . . . . Purge Threat 20 | . . . . . . . . 20 . . . . . . . . . . . . . Squads Dispatched 31 | . . . 2 . . . 1 7 . . . 1 4 4 . . . . 3 1 8 Investigation 1 | . . . . . . . . . . . . . 1 . . . . . . . . Extermination 8 | . . . . . . . . . . . . . 2 1 . . . . 3 . 2 Reinforcement 12 | . . . 2 . . . 1 3 . . . 1 1 . . . . . . 1 3 Assault 2 | . . . . . . . . 2 . . . . . . . . . . . . . Garrison 8 | . . . . . . . . 2 . . . . . 3 . . . . . . 3 Intercept . | . . . . . . . . . . . . . . . . . . . . . . Searches Triggered . | . . . . . . . . . . . . . . . . . . . . . . Construction Impeded 2 | . . . . . . . . . . . . . 1 . . . . . . . 1 Haulers Reinforced 2 | . . . . . . . . . . . . . . . . . . . . . 2 Active Scanning Responses . | . . . . . . . . . . . . . . . . . . . . . . Cargo Convoy Interrupts . | . . . . . . . . . . . . . . . . . . . . . . Stealth | -11 -10 -10 -9 -9 -9 -8 -8 -8 -8 -8 -6 -6 -5 -4 -4 -4 -4 -3 -3 -2 -1 --------- Run | Yrd Mat Min Mat Min Exi Min Mat Sto Rec Scr Fac DSF Fac Fac Upp Upp War Pro Res Res Acc Distress Signals 24 | . . . . . . . 1 5 . . . . . . . . 2 . 1 8 7 Communications Jammed . | . . . . . . . . . . . . . . . . . . . . . . Distress Signals . | . . . . . . . . . . . . . . . . . . . . . . Times Spotted 224 | . 10 5 8 15 . . 1 40 . . . 13 2 2 4 7 28 12 11 20 46 Peak Tracking Total 11 | . 5 1 5 3 . . 3 5 . . . 4 2 2 2 5 10 5 3 5 11 Tactical Retreats 8 | . . . 1 . . . . 6 . . . 1 . . . . . . . . . Traps | -11 -10 -10 -9 -9 -9 -8 -8 -8 -8 -8 -6 -6 -5 -4 -4 -4 -4 -3 -3 -2 -1 ------- Run | Yrd Mat Min Mat Min Exi Min Mat Sto Rec Scr Fac DSF Fac Fac Upp Upp War Pro Res Res Acc Traps Triggered 3 | . . . . . . . . 2 . . . . . . . . . . 1 . . Indirectly . | . . . . . . . . . . . . . . . . . . . . . . Trap Hack Attempts . | . . . . . . . . . . . . . . . . . . . . . . Triggered . | . . . . . . . . . . . . . . . . . . . . . . Disarmed . | . . . . . . . . . . . . . . . . . . . . . . Reprogrammed . | . . . . . . . . . . . . . . . . . . . . . . Reused . | . . . . . . . . . . . . . . . . . . . . . . Traps Extracted . | . . . . . . . . . . . . . . . . . . . . . . Installed . | . . . . . . . . . . . . . . . . . . . . . . Triggered . | . . . . . . . . . . . . . . . . . . . . . . Machines | -11 -10 -10 -9 -9 -9 -8 -8 -8 -8 -8 -6 -6 -5 -4 -4 -4 -4 -3 -3 -2 -1 ---------- Run | Yrd Mat Min Mat Min Exi Min Mat Sto Rec Scr Fac DSF Fac Fac Upp Upp War Pro Res Res Acc Machines Disabled 11 | . . . . 3 . . . 6 . . . . . . . . . . 2 . . Max in Single Turn 1 | . . . . 1 . . . 1 . . . . . . . . . . 1 . . Garrison Access 2 | . . . . . . . . 1 . . . . . . . . . . . 1 . Machines Repaired . | . . . . . . . . . . . . . . . . . . . . . . Machines Dismantled . | . . . . . . . . . . . . . . . . . . . . . . Machines Sabotaged . | . . . . . . . . . . . . . . . . . . . . . . Overloaded Fab Kills . | . . . . . . . . . . . . . . . . . . . . . . Hacking | -11 -10 -10 -9 -9 -9 -8 -8 -8 -8 -8 -6 -6 -5 -4 -4 -4 -4 -3 -3 -2 -1 --------- Run | Yrd Mat Min Mat Min Exi Min Mat Sto Rec Scr Fac DSF Fac Fac Upp Upp War Pro Res Res Acc Machines Accessed 43 | . 1 . . 1 1 . 1 8 8 . 2 . 6 2 . . 6 . 5 1 1 Terminals 23 | . . . . . . . 1 6 4 . 2 . 2 2 . . . . 4 1 1 Fabricators . | . . . . . . . . . . . . . . . . . . . . . . Repair Stations 1 | . . . . . . . . . . . . . 1 . . . . . . . . Recycling Units 8 | . 1 . . . . . . 1 4 . . . 2 . . . . . . . . Scanalyzers 2 | . . . . . . . . . . . . . 1 . . . . . 1 . . Garrison Access 1 | . . . . . . . . 1 . . . . . . . . . . . . . Total Hacks 84 | . 3 . . 1 1 . 3 15 21 . 2 . 15 2 . . 13 . 6 1 1 Successful 44 | . . . . 1 1 . 1 8 8 . 1 . 6 . . . 13 . 4 1 . Failed 40 | . 3 . . . . . 2 7 13 . 1 . 9 2 . . . . 2 . 1 Catastrophic 7 | . . . . . . . . . 1 . . . 3 1 . . . . 1 . 1 Database Lockouts . | . . . . . . . . . . . . . . . . . . . . . . Manual 15 | . . . . . 1 . 3 2 2 . . . 3 1 . . 1 . 1 . 1 Terminals 39 | . . . . . . . 3 11 11 . 2 . 4 2 . . . . 4 1 1 Fabricators . | . . . . . . . . . . . . . . . . . . . . . . Repair Stations 3 | . . . . . . . . . . . . . 3 . . . . . . . . Recycling Units 21 | . 3 . . . . . . 2 10 . . . 6 . . . . . . . . Scanalyzers 4 | . . . . . . . . . . . . . 2 . . . . . 2 . . Garrison Access 2 | . . . . . . . . 2 . . . . . . . . . . . . . Terminal Hacks 32 | . . . . 1 1 . 1 6 4 . 1 . 1 . . . 13 . 3 1 . Record 12 | . . . . . . . . . . . . . . . . . 12 . . . . Robot Analysis 3 | . . . . . . . 1 . 1 . . . . . . . . . 1 . . Open Door 5 | . . . . 1 . . . 3 . . . . . . . . 1 . . . . Open DSF 2 | . . . . . . . . . . . 1 . . . . . . . . 1 . Level Access Points 2 | . . . . . . . . . . . . . 1 . . . . . 1 . . Unreport Threat 1 | . . . . . . . . 1 . . . . . . . . . . . . . Zone Layout 6 | . . . . . . . . 2 3 . . . . . . . . . 1 . . Proto ID Catalog 1 | . . . . . 1 . . . . . . . . . . . . . . . . Fabricator Hacks . | . . . . . . . . . . . . . . . . . . . . . . Repair Station Hacks 1 | . . . . . . . . . . . . . 1 . . . . . . . . Scan Component 1 | . . . . . . . . . . . . . 1 . . . . . . . . Recycling Unit Hacks 7 | . . . . . . . . 1 4 . . . 2 . . . . . . . . Retrieve Components 7 | . . . . . . . . 1 4 . . . 2 . . . . . . . . Scanalyzer 3 | . . . . . . . . . . . . . 2 . . . . . 1 . . Retrieve Study 3 | . . . . . . . . . . . . . 2 . . . . . 1 . . Garrison Access Hacks 1 | . . . . . . . . 1 . . . . . . . . . . . . . Seal Access 1 | . . . . . . . . 1 . . . . . . . . . . . . . Unauthorized Hacks . | . . . . . . . . . . . . . . . . . . . . . . Terminals . | . . . . . . . . . . . . . . . . . . . . . . Fabricators . | . . . . . . . . . . . . . . . . . . . . . . Repair Stations . | . . . . . . . . . . . . . . . . . . . . . . Recycling Units . | . . . . . . . . . . . . . . . . . . . . . . Scanalyzers . | . . . . . . . . . . . . . . . . . . . . . . Garrison Access . | . . . . . . . . . . . . . . . . . . . . . . Data Cores Recovered . | . . . . . . . . . . . . . . . . . . . . . . Used . | . . . . . . . . . . . . . . . . . . . . . . Hacking Detections 25 | . 1 . . . . . 1 4 8 . 2 . 3 2 . . . . 3 . 1 Full Trace Events 1 | . . . . . . . . . . . . . 1 . . . . . . . . Feedback Events . | . . . . . . . . . . . . . . . . . . . . . . Feedback Blocked . | . . . . . . . . . . . . . . . . . . . . . . Robot Schematics Acquired . | . . . . . . . . . . . . . . . . . . . . . . Robots Built . | . . . . . . . . . . . . . . . . . . . . . . Authchips . | . . . . . . . . . . . . . . . . . . . . . . Time . | . . . . . . . . . . . . . . . . . . . . . . Total Robot Build Rating . | . . . . . . . . . . . . . . . . . . . . . . Part Schematics Acquired . | . . . . . . . . . . . . . . . . . . . . . . Parts Built . | . . . . . . . . . . . . . . . . . . . . . . Authchips . | . . . . . . . . . . . . . . . . . . . . . . Time . | . . . . . . . . . . . . . . . . . . . . . . Total Part Build Rating . | . . . . . . . . . . . . . . . . . . . . . . Part Studies Acquired 3 | . . . . . . . . . . . . . 2 . . . . . 1 . . Parts Repaired . | . . . . . . . . . . . . . . . . . . . . . . Time . | . . . . . . . . . . . . . . . . . . . . . . Parts Recycled . | . . . . . . . . . . . . . . . . . . . . . . Recycled Matter . | . . . . . . . . . . . . . . . . . . . . . . Retrieved Matter . | . . . . . . . . . . . . . . . . . . . . . . Retrieved Components 11 | . . . . . . . . 3 5 . . . 3 . . . . . . . . Parts Scanalyzed . | . . . . . . . . . . . . . . . . . . . . . . Part Schematics Acquired . | . . . . . . . . . . . . . . . . . . . . . . Parts Damaged . | . . . . . . . . . . . . . . . . . . . . . . Bothacking | -11 -10 -10 -9 -9 -9 -8 -8 -8 -8 -8 -6 -6 -5 -4 -4 -4 -4 -3 -3 -2 -1 ------------ Run | Yrd Mat Min Mat Min Exi Min Mat Sto Rec Scr Fac DSF Fac Fac Upp Upp War Pro Res Res Acc Used RIF Installer . | . . . . . . . . . . . . . . . . . . . . . . Robots Hacked . | . . . . . . . . . . . . . . . . . . . . . . Non-combat . | . . . . . . . . . . . . . . . . . . . . . . Combat . | . . . . . . . . . . . . . . . . . . . . . . Robot Hacks Applied . | . . . . . . . . . . . . . . . . . . . . . . Relay Couplers Released . | . . . . . . . . . . . . . . . . . . . . . . Fabnet Peak Effective % . | . . . . . . . . . . . . . . . . . . . . . . Robots Rewired . | . . . . . . . . . . . . . . . . . . . . . . Allies Hacked . | . . . . . . . . . . . . . . . . . . . . . . Hacks Repelled . | . . . . . . . . . . . . . . . . . . . . . . Allies | -11 -10 -10 -9 -9 -9 -8 -8 -8 -8 -8 -6 -6 -5 -4 -4 -4 -4 -3 -3 -2 -1 -------- Run | Yrd Mat Min Mat Min Exi Min Mat Sto Rec Scr Fac DSF Fac Fac Upp Upp War Pro Res Res Acc Total Allies 3 | . . . . 1 . . . 2 . . . . . . . . . . . . . Largest Group 2 | . . . . 1 . . . 2 . . . . . . . . . . . . . Highest-Rated Group 62 | . . . . 31 . . . 62 . . . . . . . . . . . . . Highest-Rated Ally 31 | . . . . 31 . . . 31 . . . . . . . . . . . . . Initial Warlord ECA Mod 9 | . . . . . . . . . . . . . 9 8 8 8 8 7 7 6 5 Total Orders . | . . . . . . . . . . . . . . . . . . . . . . Ally Attacks 34 | . . . . 8 . . . 26 . . . . . . . . . . . . . Total Damage 506 | . . . . 124 . . . 382 . . . . . . . . . . . . . Kills 5 | . . . . 1 . . . 4 . . . . . . . . . . . . . Allies Corrupted . | . . . . . . . . . . . . . . . . . . . . . . Allies Melted 2 | . . . . . . . . . . . . . . . . . . . . 2 . Intel | -11 -10 -10 -9 -9 -9 -8 -8 -8 -8 -8 -6 -6 -5 -4 -4 -4 -4 -3 -3 -2 -1 ------- Run | Yrd Mat Min Mat Min Exi Min Mat Sto Rec Scr Fac DSF Fac Fac Upp Upp War Pro Res Res Acc Active Infowar (turns) 986 | . . . . . . . 36 127 . . . . . . . . . . . . 823 T.N.C. 163 | . . . . . . . 36 127 . . . . . . . . . . . . . Cloaking 823 | . . . . . . . . . . . . . . . . . . . . . 823 Robot Analysis Total 3 | . . . . . . . 1 . 1 . . . . . . . . . 1 . . Derelict Logs Recovered 3 | . . . . 1 . . . . . . . . . . . 2 . . . . . Drone Launches . | . . . . . . . . . . . . . . . . . . . . . . Drone Recoveries . | . . . . . . . . . . . . . . . . . . . . . . Exploration | -11 -10 -10 -9 -9 -9 -8 -8 -8 -8 -8 -6 -6 -5 -4 -4 -4 -4 -3 -3 -2 -1 ------------- Run | Yrd Mat Min Mat Min Exi Min Mat Sto Rec Scr Fac DSF Fac Fac Upp Upp War Pro Res Res Acc Turns Passed 14266 | 55 167 360 217 994 337 54 46 1639 653 1500 117 523 933 828 404 571 1242 374 1181 1196 875 Spaces Moved 6629 | 31 60 170 72 376 279 44 35 592 259 600 45 120 575 393 236 339 744 186 533 551 389 Core 93 | 3 . . . . . . . . . . . . . . . . . . . . 90 Treads 2217 | 28 60 170 72 360 17 . . 362 259 600 45 120 123 . . . . . . . 1 Legs . | . . . . . . . . . . . . . . . . . . . . . . Wheels 4310 | . . . . 16 262 44 35 230 . . . . 452 393 236 339 744 186 533 551 289 Hover . | . . . . . . . . . . . . . . . . . . . . . . Flight 9 | . . . . . . . . . . . . . . . . . . . . . 9 Fastest Speed 26 | 50 160 160 160 110 110 125 125 95 250 250 250 250 115 130 160 160 160 175 175 175 26 Average Speed 183 | 149 160 160 193 234 119 125 125 202 250 250 250 250 152 149 160 160 161 175 180 189 154 Slowest Speed 270 | 160 160 160 240 240 240 125 125 250 250 250 250 250 250 160 160 160 175 175 190 190 270 Overloaded Moves 9 | . . . . . . . . . . . . . . . . . . . . . 9 Propulsion Burnouts . | . . . . . . . . . . . . . . . . . . . . . . Robots Hopped . | . . . . . . . . . . . . . . . . . . . . . . Potential Cave-ins . | . . . . . . . . . . . . . . . . . . . . . . Cave-ins Triggered . | . . . . . . . . . . . . . . . . . . . . . . Exploration Rate (%) 38 | 3 19 44 14 73 60 10 4 86 72 54 1 80 16 14 51 55 92 41 18 21 11 Regions Visited 21 Branch Regions 11 Pre-discovered Areas 1 | . . . . . . . . . . . . . . . 1 . . . . . . Known Exits Taken 4 | . . . . . . . . . . . 1 . 1 . . . . . 1 1 . Unknown Exits Taken 16 | 1 1 1 1 1 1 1 1 1 1 1 . . . 1 1 1 1 1 . . . Scrap Searched 11 | . . . . 1 . 1 . . . 4 . . . . 1 2 . 2 . . . Spaces Dug 7 | . . . . . . . . . . . . . 3 . . . . . 4 . . Terrain Destroyed 225 | . . . . . . . . . . . . 1 3 5 2 3 10 27 12 10 152 Melee 3 | . . . . . . . . . . . . . . . . . . . 3 . . Projectile 76 | . . . . . . . . . . . . 1 2 5 2 3 10 27 9 10 7 AOE 145 | . . . . . . . . . . . . . . . . . . . . . 145 Terrain Rammed . | . . . . . . . . . . . . . . . . . . . . . . Walls Destroyed . | . . . . . . . . . . . . . . . . . . . . . . Machines Disabled . | . . . . . . . . . . . . . . . . . . . . . . Actions | -11 -10 -10 -9 -9 -9 -8 -8 -8 -8 -8 -6 -6 -5 -4 -4 -4 -4 -3 -3 -2 -1 --------- Run | Yrd Mat Min Mat Min Exi Min Mat Sto Rec Scr Fac DSF Fac Fac Upp Upp War Pro Res Res Acc Total 8302 | 37 91 240 118 436 283 43 37 941 264 601 49 314 624 630 258 357 776 216 731 678 578 Wait 1104 | . 7 60 19 22 . . . 232 4 2 . 155 12 224 18 8 8 11 159 55 108 Move 6609 | 30 59 169 71 375 278 43 34 591 258 599 45 119 574 392 235 338 743 185 532 550 389 Hop . | . . . . . . . . . . . . . . . . . . . . . . Pick Up 84 | 1 4 2 3 4 1 . 1 15 . . . 7 8 6 1 1 6 2 6 15 1 Fast Attach 35 | 6 1 . 4 1 . . . 5 . . . 4 1 . . . 1 . 6 3 3 Attach 48 | . . . 3 1 . . 2 1 . . 4 1 3 2 . . 1 5 4 6 15 Detach 3 | . . . . . . . . . . . . . . . . . 1 . . 1 1 Swap 38 | . . . . 1 2 . . 7 . . . . 3 1 . 1 3 . 4 10 6 Drop 69 | . . . 2 3 2 . . 19 . . . 6 7 1 . . 3 . 4 18 4 Fire 305 | . 20 9 16 29 . . . 69 1 . . 22 16 4 4 9 10 13 12 20 51 Melee 4 | . . . . . . . . . . . . . . . . . . . 4 . . Ram . | . . . . . . . . . . . . . . . . . . . . . . Kick . | . . . . . . . . . . . . . . . . . . . . . . Crush . | . . . . . . . . . . . . . . . . . . . . . . Escape Stasis 2 | . . . . . . . . 2 . . . . . . . . . . . . . Rewire 1 | . . . . . . . . . 1 . . . . . . . . . . . . Trap . | . . . . . . . . . . . . . . . . . . . . . . Miscellaneous . | . . . . . . . . . . . . . . . . . . . . . . Route ------- -11/Scrapyard -10/Materials -10/Mines -9/Materials -9/Mines (discovered 3 exits: *Mat x2 / *Exi) -9/Exiles -8/Mines -8/Materials (discovered 2 exits: Fac / *Sto) -8/Storage (discovered 2 exits: *Fac / *Rec) -8/Recycling -8/Scraptown -6/Factory -6/DSF -5/Factory (discovered 4 exits: *Fac x4) -4/Factory -4/Upper Caves -4/Upper Caves -4/Warlord -3/Proximity Caves -3/Research (discovered 4 exits: *Res x3 / Qua) -2/Research -1/Access History --------- Turn | Location | Event 25 | -11/Scrapyard | Discovered new exit (range 15) 56 | -11/Scrapyard | Entered Materials 185 | -10/Materials | Discovered new exit (range 14) 223 | -10/Materials | Entered Mines 306 | -10/Mines | Build established: Mutant 549 | -10/Mines | Discovered new exit (range 16) 583 | -10/Mines | Entered Materials 583 | -9/Materials | Evolved 2 slots: Weapon x2 723 | -9/Materials | Lost 4 parts (1p1n1u1w) 790 | -9/Materials | Discovered new exit (range 5) 800 | -9/Materials | Entered Mines 975 | -9/Mines | Build established: Tank 1313 | -9/Mines | Discovered new exit (range 7) 1318 | -9/Mines | Received a Mining Laser from a helpful Derelict 1484 | -9/Mines | Learned location of 1 exit from Materials 1706 | -9/Mines | Discovered new exit (range 12) 1738 | -9/Mines | Found the Drone Emporium 1779 | -9/Mines | Deemed a non-threat by the Exiles lab entrance 1782 | -9/Mines | Discovered new exit (range 5) 1794 | -9/Mines | Entered Exiles 1844 | -9/Exiles | Met 8R-AWN 1863 | -9/Exiles | Met EX-HEX 1892 | -9/Exiles | Met EX-BIN 1906 | -9/Exiles | Aligned with FarCom system 1907 | -9/Exiles | Given EX-Vault access code 1933 | -9/Exiles | Opened EX-Vault 1942 | -9/Exiles | Found Modified TNC 1964 | -9/Exiles | Warned to stay clear of 0b10 Research branches 1981 | -9/Exiles | Exiles lab attacked by MAIN.C 2117 | -9/Exiles | Discovered new exit (range 14) 2131 | -9/Exiles | Left Exiles lab with Modified TNC 2131 | -9/Exiles | Entered Mines 2176 | -8/Mines | Discovered new exit (range 5) 2185 | -8/Mines | Entered Materials 2185 | -8/Materials | Evolved 2 slots: Utility x1, Weapon x1 2186 | -8/Materials | Identified exit to Factory 2186 | -8/Materials | Discovered new exit (range 15) 2231 | -8/Materials | Entered Storage 2582 | -8/Storage | Garrison activated, responded to threat 2623 | -8/Storage | Build established: Scavenger-Skirmisher 2700 | -8/Storage | Garrison activated, responded to threat 2798 | -8/Storage | Met a pair of Derelict thieves 2863 | -8/Storage | Discovered exit to Factory (range 7) 3082 | -8/Storage | Build established: Skirmisher 3860 | -8/Storage | Used back door to open Recycling access 3860 | -8/Storage | Discovered new exit (range 5) 3870 | -8/Storage | Entered Recycling 4455 | -8/Recycling | Scanned before Scraplab entrance 4498 | -8/Recycling | Entered Scraplab 4518 | -8/Recycling | Discovered new exit (range 3) 4523 | -8/Recycling | Entered Scraptown 4824 | -8/Scraptown | Build established: Tank 4881 | -8/Scraptown | Discovered new exit (range 11) 5058 | -8/Scraptown | Visited TADAMA 5125 | -8/Scraptown | Visited Symbiants 5153 | -8/Scraptown | Visited Awakened 5178 | -8/Scraptown | Visited Fellowship of the Rings 5230 | -8/Scraptown | Visited Shadow of the Wyrm 5285 | -8/Scraptown | Visited Assassins FH 5365 | -8/Scraptown | Visited Red Mages 5458 | -8/Scraptown | Turned away by UFD registrar 6023 | -8/Scraptown | Entered Factory 6023 | -6/Factory | Evolved 4 slots: Utility x1, Weapon x3 6140 | -6/Factory | Identified exit to DSF 6140 | -6/Factory | Entered DSF 6271 | -6/DSF | Additional patrols routed to DSF 6324 | -6/DSF | Build established: Scavenger-Executioner 6545 | -6/DSF | Sterilization system engaged 6565 | -6/DSF | Ambient heat levels rising (+10) 6580 | -6/DSF | Ambient heat levels rising (+10) 6595 | -6/DSF | Ambient heat levels rising (+10) 6610 | -6/DSF | Ambient heat levels rising (+10) 6625 | -6/DSF | Ambient heat levels rising (+10) 6628 | -6/DSF | Discovered new exit (range 13) 6640 | -6/DSF | Ambient heat levels rising (+10) 6655 | -6/DSF | Ambient heat levels rising (+10) 6663 | -6/DSF | Entered Factory 6663 | -5/Factory | Evolved 2 slots: Utility x1, Weapon x1 7363 | -5/Factory | Identified exit to Factory 7596 | -5/Factory | Entered another Factory area 7596 | -4/Factory | Evolved 2 slots: Utility x1, Weapon x1 8034 | -4/Factory | Garrison activated, responded to threat 8383 | -4/Factory | Discovered new exit (range 2) 8424 | -4/Factory | Entered Upper Caves 8430 | -4/Upper Caves | Met a Warlord Commander 8431 | -4/Upper Caves | Learned location of Warlord (-4) 8432 | -4/Upper Caves | Warlord Commander delivered Encrypted Comm Array 8782 | -4/Upper Caves | Attracted the attention of an 0b10 checkpoint 8815 | -4/Upper Caves | Discovered new exit (range 9) 8828 | -4/Upper Caves | Entered another Upper Caves area 8829 | -4/Upper Caves | Encountered a Warlord checkpoint 8901 | -4/Upper Caves | Learned location of 1 exit from Research 9108 | -4/Upper Caves | Spotted B-86 Titan 9124 | -4/Upper Caves | Destroyed B-86 Titan 9360 | -4/Upper Caves | Attracted the attention of an 0b10 checkpoint 9383 | -4/Upper Caves | Discovered new exit (range 7) 9399 | -4/Upper Caves | Entered Warlord 9467 | -4/Warlord | System corruption cleaned by Quarantine Array 10050 | -4/Warlord | Met Warlord 10075 | -4/Warlord | Warlord's base attacked by MAIN.C 10181 | -4/Warlord | Found Prototype Launcher 10184 | -4/Warlord | Found Prototype Energy Gun 10186 | -4/Warlord | Found Prototype Energy Gun 10425 | -4/Warlord | Warlord forces counterattacked 10521 | -4/Warlord | Spotted Executioner 10563 | -4/Warlord | Lost 4 allies 10572 | -4/Warlord | Spotted Executioner 10584 | -4/Warlord | Spotted Executioner 10585 | -4/Warlord | Destroyed Executioner 10621 | -4/Warlord | Discovered new exit (range 10) 10633 | -4/Warlord | Destroyed 10 combat bots 10641 | -4/Warlord | Entered Proximity Caves 10645 | -3/Proximity Caves | Lost 7 allies 11003 | -3/Proximity Caves | Discovered new exit (range 7) 11015 | -3/Proximity Caves | Entered Research 11015 | -3/Research | Evolved 2 slots: Power x1, Utility x1 11016 | -3/Research | Identified exit to Quarantine 11017 | -3/Research | Identified exit to Research 12049 | -3/Research | Identified Vortex Shotgun (x2) 12186 | -3/Research | Spotted B-86 Titan 12196 | -3/Research | Entered another Research area 12196 | -2/Research | Warlord forces began assault on 0b10 12196 | -2/Research | Evolved 2 slots: Utility x2 12221 | -2/Research | Distinguished unit "Cat Herders" dispatched to help 12306 | -2/Research | Research machine network offline 12473 | -2/Research | Lost 4 allies 12480 | -2/Research | Spotted Striker 12484 | -2/Research | Spotted Striker 12488 | -2/Research | Destroyed Striker 12529 | -2/Research | Lost 6 allies 12763 | -2/Research | Spotted Striker 12765 | -2/Research | Spotted Striker 12776 | -2/Research | Destroyed Striker 12786 | -2/Research | Destroyed Striker 13264 | -2/Research | Borebot progress halted 13358 | -2/Research | Discovered new exit (range 4) 13373 | -2/Research | Identified exit to Access 13392 | -2/Research | Entered Access 13392 | -1/Access | Evolved 2 slots: Utility x2 13513 | -1/Access | Garrison activated, responded to threat 13706 | -1/Access | Identified Vortex Catalyst Activator 13780 | -1/Access | Spotted B-99 Colossus 13832 | -1/Access | Destroyed B-99 Colossus 14215 | -1/Access | Released all parts (12) 14219 | -1/Access | Destroyed 9 combat bots 14240 | -1/Access | Lost 17 parts (1p6u10w) 14241 | -1/Access | System corruption reached 10% 14247 | -1/Access | Core integrity fell below 50% 14256 | -1/Access | Core integrity fell below 20% 14267 | -1/Access | Destroyed by H-88 Terminator with KE Penetrator Last Messages --------------- 14252_ K-01 Serf collects debris. 14252_ Slug penetrates Wall. 14252_ Penetrated by Slug. 14253_ U-05 Engineer lays Concrete. 14253_ Penetrated by Slug. 14254_ R-10 Processor collects Med. Matter Pod. 14254_ U-05 Engineer lays Concrete. 14255_ Penetrated by Slug. 14255_ K-01 Serf collects debris. 14255_ Slug penetrates Wall. 14255_ Penetrated by Slug. 14256_ U-05 Engineer lays Concrete. 14260_ Penetrated by Slug. 14262_ Acquired Prototype Flight Unit. 14262_ Identified Cld. Impulse Thruster. 14262_ R-10 Processor collects Sml. Battery. 14263_ Slug penetrates Wall. 14264_ Acquired Cld. Impulse Thruster. 14265_ R-10 Processor collects Wheel. 14267_ Penetrated by Slug. Map ----- +----------------------------------------------------+ | ???????????????????????????????????????#+##+##+#?? | | ????????????????????#################### #?? | | ????????????????????# ## # #?# | | ????????????????????# ## # ### | | ????????????????????# ## " + | | ????????????????????# ## "" + # | | ????????????????????# ## "" # ## | | ????????????????????? ## "" # ### | | ????????????????????? ## "" # # | | ?????????????????????? ?# "" # ## | | ?????????????????????? ?# "" # ## | | ??##############?????##+### " + ## | | ??# #?????# ## # ### | | ??# #?????# " # #?? | | ??# " #?????# ############### #?? | | ??# """ #?????## #?? | | ### """ ]#??????# #?? | | + " #?##???# ^ =#?? | | ###= # #???# #?? | | #?# ! # #???#### !! #?? | | ##! !! # ##??????# !! #?? | | ###! |!= # #???????# ! #?? | | !!" = =!= # #???????####### #?? | | =!#[[!! ! # #?????????????# #?? | | =####+######################### #?? | | =!!h= = ! @ = k #?? | | | #########g #?? | | =* #?????????? ??? | | =[ ! #???????????? ???? | | | == #?????????????????? | | #?????????????????? | | u #?????????????????? | | #################+###########?????????????????? | | # #???? ??????????????????????????? | | # "??? ?? ?????????????????????????? | | # " ? ???? ????????????????????????? | | # " ?????? ????????????????????????? | | # " ??????? ?????????????????????????? | | # "???????????????????????????????????? | | # ??????????????????????????????????????? | | #? ???????????????g????????????????????????? | | #?????????????????????????????????????????????? | | #?????????????????????????????????????????????? | | #?????????????????????????????????????????????? | | #?????????????????????????????????????????????? | | #?????????????????????????????????????????????? | | ####?????????????????????????????????????????????? | | #??????????????????????????????????????????????? | | #??????????????????????????????????????????????? | | #??????????????????????????????????????????????? | +----------------------------------------------------+ Best States ------------- Heat Dissipation 141 Energy Generation 41 Energy Capacity 420 Matter Stores 300 Matter Capacity 300 Sight Range 16 Terrain Scan Density 10 Cloak Strength 3 EM Shielding 2 Armor Coverage 450 Resistance: KI 25 Resistance: TH 30 Weapon Cycling 25 Phase Shifting 15 Evasion (%) 55 Target Analysis 8 Core Analysis 6 Recoil Reduction 8 Item Schematics ----------------- None Robot Schematics ------------------ None Fabricated ------------ Nothing Repaired ---------- Nothing Studied --------- Gauss Rifle | -5/Factory | Hacked Minigun | -5/Factory | Hacked Railgun | -3/Research | Hacked Alien Tech Used ----------------- None Achievements -------------- None Challenges ------------ None Game ------ Seed PulsePhasingJets Manual? 0 Play Time 02:01:27 Cumulative 106.0 hours Start 2026.07.23 @ 15:45:24 End 2026.07.23 @ 17:57:26 Sessions 1 Manual Loads 0 Difficulty Rogue Special Mode None Game No. 117 Rogue 63 Adventurer 54 Explorer 0 Win Type - Total 2 Types 2/0/0/0/0/0/0/0/0/0 Lore% 47 Gallery% 48 Achievement% 43 Wizard Run 0 Options --------- Layout 1 ASCII 0 Keyboard 0 Movement Mouse Keybinds 1 Fullscreen 1 Font 32/Tamsyn Map View 50x35 Zoom Use 0% Tactical HUD 1 Map Filters NONE Filters NONE Steam 1 RUN: 64c169dc-d25b-4f8c-9867-6e6c9848a916